[Event "Live Chess"]
[Site "Chess.com"]
[Date "2010.12.30"]
[Round "-"]
[White "Kristvar"]
[Black "hipposcottimus"]
[Result "1-0"]
[CurrentPosition "r2R2k1/q4p1p/4pQ2/5p2/2b1p3/4P1P1/P4P1P/1R4K1 b - -"]
[Timezone "UTC"]
[ECO "D10"]
[ECOUrl "https://www.chess.com/openings/Slav-Defense"]
[UTCDate "2010.12.30"]
[UTCTime "20:35:19"]
[WhiteElo "1549"]
[BlackElo "1340"]
[TimeControl "480"]
[Termination "Kristvar won by resignation"]
[StartTime "20:35:19"]
[EndDate "2010.12.30"]
[EndTime "20:43:51"]
[Link "https://www.chess.com/game/live/82630081"]

1. d4 {[%clk 0:08:00]} 1... d5 {[%clk 0:08:00]} 2. c4 {[%clk 0:07:58.6]} 2... c6 {[%clk 0:07:57.2]} 3. g3 {[%clk 0:07:47.9]} 3... Nd7 {[%clk 0:07:55.8]} 4. Nf3 {[%clk 0:07:46.7]} 4... e6 {[%clk 0:07:49.9]} 5. c5 {[%clk 0:07:45.6]} 5... b6 {[%clk 0:07:47.2]} 6. b4 {[%clk 0:07:41]} 6... a5 {[%clk 0:07:42.3]} 7. Bd2 {[%clk 0:07:33.5]} 7... axb4 {[%clk 0:07:39.4]} 8. Bxb4 {[%clk 0:07:29.1]} 8... bxc5 {[%clk 0:07:37.5]} 9. dxc5 {[%clk 0:07:26.5]} 9... Bxc5 {[%clk 0:07:34.8]} 10. Bxc5 {[%clk 0:07:24.7]} 10... Nxc5 {[%clk 0:07:33]} 11. Bg2 {[%clk 0:07:21.7]} 11... Qa5+ {[%clk 0:07:28.7]} 12. Qd2 {[%clk 0:07:20.8]} 12... Nf6 {[%clk 0:07:20.4]} 13. Ne5 {[%clk 0:07:08.7]} 13... Qb5 {[%clk 0:06:28.4]} 14. Nc3 {[%clk 0:06:47.7]} 14... Qa6 {[%clk 0:05:40.8]} 15. O-O {[%clk 0:06:42]} 15... O-O {[%clk 0:05:33.7]} 16. e3 {[%clk 0:06:09.6]} 16... Nce4 {[%clk 0:05:11.3]} 17. Nxe4 {[%clk 0:06:02.1]} 17... dxe4 {[%clk 0:05:10]} 18. Rfc1 {[%clk 0:05:35.1]} 18... Bb7 {[%clk 0:04:58.8]} 19. Nd7 {[%clk 0:05:17.4]} 19... Rfd8 {[%clk 0:04:54.3]} 20. Nxf6+ {[%clk 0:05:13.5]} 20... gxf6 {[%clk 0:04:50]} 21. Qb2 {[%clk 0:05:06.4]} 21... f5 {[%clk 0:04:49.1]} 22. Bf1 {[%clk 0:04:54]} 22... Qa7 {[%clk 0:04:42.3]} 23. Qf6 {[%clk 0:04:41.9]} 23... c5 {[%clk 0:04:20.6]} 24. Rab1 {[%clk 0:04:08.8]} 24... Bd5 {[%clk 0:04:14.4]} 25. Rd1 {[%clk 0:03:53.4]} 25... c4 {[%clk 0:04:04.9]} 26. Bxc4 {[%clk 0:03:45.3]} 26... Bxc4 {[%clk 0:03:58.5]} 27. Rxd8+ {[%clk 0:03:43]} 1-0

[Event "Live Chess"]
[Site "Chess.com"]
[Date "2010.12.30"]
[Round "-"]
[White "hipposcottimus"]
[Black "JamesCox"]
[Result "0-1"]
[CurrentPosition "r1bq1rk1/ppp2ppp/3p2n1/3P4/N3P1n1/3B4/PPP1NKPP/R2Q3R w - -"]
[Timezone "UTC"]
[ECO "B00"]
[ECOUrl "https://www.chess.com/openings/Nimzowitsch-Defense-Kennedy-Linksspringer-Variation-3...Nce7"]
[UTCDate "2010.12.30"]
[UTCTime "20:27:41"]
[WhiteElo "1344"]
[BlackElo "1527"]
[TimeControl "600"]
[Termination "JamesCox won by resignation"]
[StartTime "20:27:41"]
[EndDate "2010.12.30"]
[EndTime "20:30:24"]
[Link "https://www.chess.com/game/live/82628001"]

1. e4 {[%clk 0:10:00]} 1... Nc6 {[%clk 0:10:00]} 2. d4 {[%clk 0:09:53.4]} 2... e5 {[%clk 0:09:57.4]} 3. d5 {[%clk 0:09:46.7]} 3... Nce7 {[%clk 0:09:56.2]} 4. f4 {[%clk 0:09:40.3]} 4... exf4 {[%clk 0:09:52.6]} 5. Bxf4 {[%clk 0:09:37.4]} 5... Ng6 {[%clk 0:09:51.7]} 6. Bg3 {[%clk 0:09:32.5]} 6... Nf6 {[%clk 0:09:40.7]} 7. Bd3 {[%clk 0:09:26]} 7... Bc5 {[%clk 0:09:35]} 8. Nc3 {[%clk 0:09:05]} 8... O-O {[%clk 0:09:32.3]} 9. Nge2 {[%clk 0:08:53.1]} 9... d6 {[%clk 0:09:05.7]} 10. Na4 {[%clk 0:08:39.2]} 10... Be3 {[%clk 0:09:02.9]} 11. Bf2 {[%clk 0:08:30.6]} 11... Bxf2+ {[%clk 0:08:58.8]} 12. Kxf2 {[%clk 0:08:26.4]} 12... Ng4+ {[%clk 0:08:56.9]} 0-1

[Event "Live Chess"]
[Site "Chess.com"]
[Date "2010.12.30"]
[Round "-"]
[White "hipposcottimus"]
[Black "sugarray2550"]
[Result "0-1"]
[CurrentPosition "8/p2p2pk/7p/1bP5/4q3/PP6/5QPP/6K1 b - -"]
[Timezone "UTC"]
[ECO "C50"]
[ECOUrl "https://www.chess.com/openings/Italian-Game-Hungarian-Defense-4.d4-exd4-5.Nxd4"]
[UTCDate "2010.12.30"]
[UTCTime "20:09:02"]
[WhiteElo "1348"]
[BlackElo "1518"]
[TimeControl "720"]
[Termination "sugarray2550 won by resignation"]
[StartTime "20:09:02"]
[EndDate "2010.12.30"]
[EndTime "20:26:40"]
[Link "https://www.chess.com/game/live/82622207"]

1. e4 {[%clk 0:12:00]} 1... e5 {[%clk 0:12:00]} 2. Nf3 {[%clk 0:11:57.8]} 2... Nc6 {[%clk 0:11:56.9]} 3. Bc4 {[%clk 0:11:55.9]} 3... Be7 {[%clk 0:11:53.1]} 4. d4 {[%clk 0:11:48.4]} 4... exd4 {[%clk 0:11:48.2]} 5. Nxd4 {[%clk 0:11:48.1]} 5... Nxd4 {[%clk 0:11:42.9]} 6. Qxd4 {[%clk 0:11:47.7]} 6... Nf6 {[%clk 0:11:28.4]} 7. Nc3 {[%clk 0:11:31.1]} 7... O-O {[%clk 0:11:26]} 8. Nd5 {[%clk 0:11:11.1]} 8... Nxd5 {[%clk 0:11:21]} 9. exd5 {[%clk 0:11:07]} 9... Bb4+ {[%clk 0:11:09.3]} 10. c3 {[%clk 0:11:02.9]} 10... Re8+ {[%clk 0:11:08]} 11. Be3 {[%clk 0:10:58.6]} 11... c5 {[%clk 0:10:56.6]} 12. dxc6 {[%clk 0:10:50.6]} 12... Ba5 {[%clk 0:10:37.5]} 13. O-O {[%clk 0:10:41.3]} 13... Bb6 {[%clk 0:10:35.3]} 14. cxb7 {[%clk 0:10:29.6]} 14... Bxb7 {[%clk 0:10:10.6]} 15. Qf4 {[%clk 0:10:13.1]} 15... Bxe3 {[%clk 0:10:04.5]} 16. Bxf7+ {[%clk 0:09:59.4]} 16... Kh8 {[%clk 0:09:59.7]} 17. fxe3 {[%clk 0:09:52.1]} 17... Rf8 {[%clk 0:09:52.4]} 18. Qd6 {[%clk 0:09:24.8]} 18... Qg5 {[%clk 0:09:08.1]} 19. Bd5 {[%clk 0:08:29]} 19... Rxf1+ {[%clk 0:07:50]} 20. Rxf1 {[%clk 0:08:25.5]} 20... Bxd5 {[%clk 0:07:48.4]} 21. Rf2 {[%clk 0:07:39.1]} 21... h6 {[%clk 0:06:35.5]} 22. b3 {[%clk 0:07:19.4]} 22... Re8 {[%clk 0:06:05]} 23. c4 {[%clk 0:07:10.1]} 23... Be6 {[%clk 0:05:56.2]} 24. e4 {[%clk 0:06:55.1]} 24... Qc1+ {[%clk 0:05:37.9]} 25. Rf1 {[%clk 0:06:45.4]} 25... Qe3+ {[%clk 0:05:33.5]} 26. Rf2 {[%clk 0:06:29.4]} 26... Qe1+ {[%clk 0:05:25.5]} 27. Rf1 {[%clk 0:06:25.6]} 27... Qxe4 {[%clk 0:05:22.3]} 28. c5 {[%clk 0:06:05.3]} 28... Bd5 {[%clk 0:04:39.9]} 29. Rf2 {[%clk 0:04:44]} 29... Bc6 {[%clk 0:04:26.3]} 30. a3 {[%clk 0:04:36.2]} 30... Bb5 {[%clk 0:04:07.8]} 31. Rf8+ {[%clk 0:03:55.2]} 31... Rxf8 {[%clk 0:02:57.9]} 32. Qxf8+ {[%clk 0:03:46.2]} 32... Kh7 {[%clk 0:02:55.5]} 33. Qf2 {[%clk 0:03:43.4]} 0-1

[Event "Live Chess"]
[Site "Chess.com"]
[Date "2010.12.30"]
[Round "-"]
[White "hipposcottimus"]
[Black "zweiss"]
[Result "1-0"]
[CurrentPosition "r4rk1/pbpnqp1Q/1p2p3/3pP2p/3P4/2NB1P2/PPP3PP/R4RK1 b - -"]
[Timezone "UTC"]
[ECO "B07"]
[ECOUrl "https://www.chess.com/openings/Pirc-Defense-Lions-Jaw-Variation-3...Nbd7"]
[UTCDate "2010.12.30"]
[UTCTime "19:56:20"]
[WhiteElo "1353"]
[BlackElo "1357"]
[TimeControl "480"]
[Termination "hipposcottimus won by checkmate"]
[StartTime "19:56:20"]
[EndDate "2010.12.30"]
[EndTime "20:00:06"]
[Link "https://www.chess.com/game/live/82618747"]

1. e4 {[%clk 0:08:00]} 1... d6 {[%clk 0:08:00]} 2. d4 {[%clk 0:07:54.8]} 2... Nf6 {[%clk 0:07:56]} 3. f3 {[%clk 0:07:38.2]} 3... Nbd7 {[%clk 0:07:54.4]} 4. Nc3 {[%clk 0:07:14.8]} 4... g6 {[%clk 0:07:52.5]} 5. Nge2 {[%clk 0:06:33]} 5... Bg7 {[%clk 0:07:48.3]} 6. Ng3 {[%clk 0:06:26.2]} 6... O-O {[%clk 0:07:46.4]} 7. Bd3 {[%clk 0:06:10.6]} 7... b6 {[%clk 0:07:42.5]} 8. O-O {[%clk 0:06:06.9]} 8... Bb7 {[%clk 0:07:39.4]} 9. Be3 {[%clk 0:05:45.2]} 9... e6 {[%clk 0:07:38.3]} 10. Qd2 {[%clk 0:05:40.7]} 10... Qe7 {[%clk 0:07:37.1]} 11. Bh6 {[%clk 0:05:36.1]} 11... Bxh6 {[%clk 0:07:23.8]} 12. Qxh6 {[%clk 0:05:33.7]} 12... d5 {[%clk 0:07:15.3]} 13. e5 {[%clk 0:05:29.7]} 13... Nh5 {[%clk 0:07:10.9]} 14. Nxh5 {[%clk 0:05:22.1]} 14... gxh5 {[%clk 0:07:02.6]} 15. Qxh7# {[%clk 0:05:19.3]} 1-0

[Event "Live Chess"]
[Site "Chess.com"]
[Date "2010.12.30"]
[Round "-"]
[White "hipposcottimus"]
[Black "EdgarWinter"]
[Result "1-0"]
[CurrentPosition "8/Np2Rppp/4kn2/1BB1p3/4P3/P4P2/KPPr1P1P/8 b - -"]
[Timezone "UTC"]
[ECO "C41"]
[ECOUrl "https://www.chess.com/openings/Philidor-Defense-3.d4-Bg4-4.dxe5"]
[UTCDate "2010.12.30"]
[UTCTime "19:39:46"]
[WhiteElo "1353"]
[BlackElo "1200"]
[TimeControl "600"]
[Termination "hipposcottimus won by checkmate"]
[StartTime "19:39:46"]
[EndDate "2010.12.30"]
[EndTime "19:53:28"]
[Link "https://www.chess.com/game/live/82613697"]

1. e4 {[%clk 0:10:00]} 1... e5 {[%clk 0:10:00]} 2. Nf3 {[%clk 0:09:53.9]} 2... d6 {[%clk 0:09:50.3]} 3. d4 {[%clk 0:09:47.8]} 3... Bg4 {[%clk 0:09:38.7]} 4. dxe5 {[%clk 0:09:44.2]} 4... Bxf3 {[%clk 0:09:26.5]} 5. gxf3 {[%clk 0:09:37]} 5... dxe5 {[%clk 0:09:21.1]} 6. Qxd8+ {[%clk 0:09:33]} 6... Kxd8 {[%clk 0:09:14.7]} 7. Nc3 {[%clk 0:09:32.7]} 7... Nc6 {[%clk 0:08:44.4]} 8. Be3 {[%clk 0:09:18.4]} 8... Nb4 {[%clk 0:08:20.6]} 9. O-O-O+ {[%clk 0:09:12.6]} 9... Ke8 {[%clk 0:07:59.3]} 10. Nb5 {[%clk 0:09:06.3]} 10... Rc8 {[%clk 0:07:24.3]} 11. Nxa7 {[%clk 0:08:56.5]} 11... Rd8 {[%clk 0:07:12]} 12. Rxd8+ {[%clk 0:08:30.3]} 12... Kxd8 {[%clk 0:07:07.5]} 13. a3 {[%clk 0:08:28.1]} 13... Na2+ {[%clk 0:06:50.6]} 14. Kb1 {[%clk 0:08:24.3]} 14... Bb4 {[%clk 0:05:43.7]} 15. Kxa2 {[%clk 0:08:07.8]} 15... Ba5 {[%clk 0:05:10.1]} 16. Bb5 {[%clk 0:07:45.5]} 16... Bb6 {[%clk 0:04:22.7]} 17. Rd1+ {[%clk 0:07:33.6]} 17... Ke7 {[%clk 0:04:13.7]} 18. Rd7+ {[%clk 0:07:24]} 18... Ke6 {[%clk 0:03:58.2]} 19. Bxb6 {[%clk 0:06:17.5]} 19... Nf6 {[%clk 0:03:09.4]} 20. Rxc7 {[%clk 0:06:07.4]} 20... Rd8 {[%clk 0:02:05.3]} 21. Bc5 {[%clk 0:05:39.1]} 21... Rd2 {[%clk 0:01:03.9]} 22. Re7# {[%clk 0:05:25.6]} 1-0

[Event "Live Chess"]
[Site "Chess.com"]
[Date "2010.12.30"]
[Round "-"]
[White "pankans"]
[Black "hipposcottimus"]
[Result "1-0"]
[CurrentPosition "8/4KR2/6pp/6k1/6P1/2r4P/8/8 b - -"]
[Timezone "UTC"]
[ECO "C61"]
[ECOUrl "https://www.chess.com/openings/Ruy-Lopez-Opening-Birds-Defense-4.Nxd4-exd4-5.d3"]
[UTCDate "2010.12.30"]
[UTCTime "19:14:13"]
[WhiteElo "1555"]
[BlackElo "1356"]
[TimeControl "600+1"]
[Termination "pankans won on time"]
[StartTime "19:14:13"]
[EndDate "2010.12.30"]
[EndTime "19:32:25"]
[Link "https://www.chess.com/game/live/82604794"]

1. e4 {[%clk 0:10:00]} 1... e5 {[%clk 0:10:00]} 2. Nf3 {[%clk 0:09:59.2]} 2... Nc6 {[%clk 0:09:55.7]} 3. Bb5 {[%clk 0:09:58.2]} 3... Nd4 {[%clk 0:09:52.8]} 4. Nxd4 {[%clk 0:09:57.4]} 4... exd4 {[%clk 0:09:51.6]} 5. d3 {[%clk 0:09:57.4]} 5... c6 {[%clk 0:09:47.2]} 6. Ba4 {[%clk 0:09:55.7]} 6... d5 {[%clk 0:09:20.2]} 7. exd5 {[%clk 0:09:53.6]} 7... Qxd5 {[%clk 0:09:16.4]} 8. O-O {[%clk 0:09:50.6]} 8... Bb4 {[%clk 0:09:07.3]} 9. c3 {[%clk 0:09:41.7]} 9... dxc3 {[%clk 0:08:52.7]} 10. bxc3 {[%clk 0:09:40.2]} 10... Ba5 {[%clk 0:08:52.1]} 11. Ba3 {[%clk 0:09:34.3]} 11... Nf6 {[%clk 0:08:44.4]} 12. Bb3 {[%clk 0:09:32.6]} 12... Qg5 {[%clk 0:08:35.1]} 13. Qe2+ {[%clk 0:09:28.7]} 13... Be6 {[%clk 0:08:28.3]} 14. Bxe6 {[%clk 0:09:25.6]} 14... c5 {[%clk 0:05:34.4]} 15. Bd5+ {[%clk 0:09:00.8]} 15... Kd7 {[%clk 0:05:25.7]} 16. Bxb7 {[%clk 0:08:23.3]} 16... Rhe8 {[%clk 0:05:14.9]} 17. Qf3 {[%clk 0:08:09.6]} 17... Rab8 {[%clk 0:04:34.6]} 18. Qc6+ {[%clk 0:07:43.5]} 18... Kd8 {[%clk 0:04:22.3]} 19. Qd6+ {[%clk 0:07:03.6]} 19... Nd7 {[%clk 0:04:14.2]} 20. Bc6 {[%clk 0:06:53.5]} 20... Re7 {[%clk 0:04:11]} 21. Bxd7 {[%clk 0:06:47.6]} 21... Bc7 {[%clk 0:04:04.8]} 22. Qxc5 {[%clk 0:06:26.6]} 22... Qxc5 {[%clk 0:04:00.1]} 23. Bxc5 {[%clk 0:06:24.5]} 23... Rxd7 {[%clk 0:04:00.7]} 24. d4 {[%clk 0:06:23.2]} 24... Bd6 {[%clk 0:03:51.8]} 25. Bxd6 {[%clk 0:06:16.7]} 25... Rxd6 {[%clk 0:03:48.1]} 26. Na3 {[%clk 0:06:16.3]} 26... a6 {[%clk 0:03:35.1]} 27. Rab1 {[%clk 0:06:11.1]} 27... Rc8 {[%clk 0:03:29.3]} 28. Rfc1 {[%clk 0:05:58.4]} 28... Ke8 {[%clk 0:03:23.9]} 29. f3 {[%clk 0:05:57.9]} 29... Kf8 {[%clk 0:03:15]} 30. Rb7 {[%clk 0:05:56.7]} 30... Kg8 {[%clk 0:03:04.1]} 31. Rd1 {[%clk 0:05:40.1]} 31... g6 {[%clk 0:02:58.7]} 32. c4 {[%clk 0:05:39.7]} 32... Kg7 {[%clk 0:02:53.1]} 33. c5 {[%clk 0:05:39.5]} 33... Rxc5 {[%clk 0:02:46.5]} 34. dxc5 {[%clk 0:05:32]} 34... Rxd1+ {[%clk 0:02:44.7]} 35. Kf2 {[%clk 0:05:30.9]} 35... Rc1 {[%clk 0:02:45.2]} 36. Rc7 {[%clk 0:05:25.2]} 36... Ra1 {[%clk 0:02:36.4]} 37. Rc6 {[%clk 0:05:17.1]} 37... Rxa2+ {[%clk 0:02:30.2]} 38. Kg3 {[%clk 0:05:11.7]} 38... Rxa3 {[%clk 0:02:12]} 39. Rb6 {[%clk 0:05:11.3]} 39... Rc3 {[%clk 0:02:05.8]} 40. c6 {[%clk 0:05:08.6]} 40... a5 {[%clk 0:02:04.6]} 41. Ra6 {[%clk 0:05:06]} 41... Rc5 {[%clk 0:01:57.5]} 42. Kf4 {[%clk 0:04:57.1]} 42... f5 {[%clk 0:01:54.7]} 43. g4 {[%clk 0:04:54.5]} 43... Rc4+ {[%clk 0:01:39]} 44. Ke5 {[%clk 0:04:43.2]} 44... fxg4 {[%clk 0:01:27.6]} 45. Ra7+ {[%clk 0:04:37.7]} 45... Kh6 {[%clk 0:01:17.1]} 46. fxg4 {[%clk 0:04:35.7]} 46... Rxc6 {[%clk 0:01:08.7]} 47. Rxa5 {[%clk 0:04:29.9]} 47... Rc4 {[%clk 0:00:55.9]} 48. h3 {[%clk 0:04:06.7]} 48... Kg5 {[%clk 0:00:21.6]} 49. Kd6+ {[%clk 0:04:04.4]} 49... Kh4 {[%clk 0:00:16.2]} 50. Ra7 {[%clk 0:04:03.9]} 50... h6 {[%clk 0:00:14.7]} 51. Rh7 {[%clk 0:04:02.4]} 51... Kg5 {[%clk 0:00:03.3]} 52. Rf7 {[%clk 0:04:01.5]} 52... Rc3 {[%clk 0:00:01.1]} 53. Ke7 {[%clk 0:03:58.7]} 1-0

[Event "Live Chess"]
[Site "Chess.com"]
[Date "2010.12.30"]
[Round "-"]
[White "hipposcottimus"]
[Black "Paddamtsssj"]
[Result "1-0"]
[CurrentPosition "8/8/8/8/6R1/8/5NKP/4k3 b - -"]
[Timezone "UTC"]
[ECO "C55"]
[ECOUrl "https://www.chess.com/openings/Italian-Game-Anti-Fried-Liver-Defense"]
[UTCDate "2010.12.30"]
[UTCTime "18:46:19"]
[WhiteElo "1353"]
[BlackElo "1220"]
[TimeControl "600"]
[Termination "hipposcottimus won by resignation"]
[StartTime "18:46:19"]
[EndDate "2010.12.30"]
[EndTime "19:01:48"]
[Link "https://www.chess.com/game/live/82597900"]

1. e4 {[%clk 0:10:00]} 1... e5 {[%clk 0:10:00]} 2. Nf3 {[%clk 0:09:55.4]} 2... Nc6 {[%clk 0:09:59.1]} 3. Bc4 {[%clk 0:09:53.3]} 3... h6 {[%clk 0:09:58.2]} 4. d4 {[%clk 0:09:45.4]} 4... exd4 {[%clk 0:09:44.8]} 5. Nxd4 {[%clk 0:09:43.5]} 5... Bc5 {[%clk 0:09:37]} 6. Nf5 {[%clk 0:09:37.2]} 6... Nf6 {[%clk 0:09:21.5]} 7. Nxg7+ {[%clk 0:09:35.4]} 7... Kf8 {[%clk 0:09:16.2]} 8. Nf5 {[%clk 0:09:29.4]} 8... Nxe4 {[%clk 0:09:13.5]} 9. Bxh6+ {[%clk 0:09:27.6]} 9... Kg8 {[%clk 0:08:48.7]} 10. Be3 {[%clk 0:09:19.6]} 10... d5 {[%clk 0:08:45.4]} 11. Bxd5 {[%clk 0:09:14.9]} 11... Bxf5 {[%clk 0:08:43.4]} 12. Bxc5 {[%clk 0:09:08.8]} 12... Nf6 {[%clk 0:08:00.7]} 13. Bxc6 {[%clk 0:09:02.5]} 13... bxc6 {[%clk 0:07:59.1]} 14. O-O {[%clk 0:08:58.4]} 14... Nd5 {[%clk 0:07:19]} 15. Qf3 {[%clk 0:08:55.1]} 15... Bxc2 {[%clk 0:07:00.9]} 16. Na3 {[%clk 0:08:52]} 16... Bg6 {[%clk 0:06:40.7]} 17. Qg3 {[%clk 0:08:31]} 17... Rb8 {[%clk 0:06:14.2]} 18. f4 {[%clk 0:08:25.8]} 18... Rh6 {[%clk 0:05:24.4]} 19. f5 {[%clk 0:08:18.8]} 19... Rxb2 {[%clk 0:05:18.8]} 20. fxg6 {[%clk 0:08:17.2]} 20... fxg6 {[%clk 0:05:16.8]} 21. Rf8+ {[%clk 0:08:08.1]} 21... Qxf8 {[%clk 0:05:06.7]} 22. Bxf8 {[%clk 0:08:07.3]} 22... Kxf8 {[%clk 0:05:06.1]} 23. Rf1+ {[%clk 0:08:04.2]} 23... Kg7 {[%clk 0:05:04.1]} 24. Nc4 {[%clk 0:08:03.7]} 24... Nc3 {[%clk 0:04:58.3]} 25. Nxb2 {[%clk 0:08:01.8]} 25... Ne2+ {[%clk 0:04:56.1]} 26. Kh1 {[%clk 0:07:59.7]} 26... Nxg3+ {[%clk 0:04:54.6]} 27. Kg1 {[%clk 0:07:59.2]} 27... Ne4 {[%clk 0:04:48.3]} 28. Nc4 {[%clk 0:07:52.6]} 28... Rh5 {[%clk 0:04:27.4]} 29. Re1 {[%clk 0:07:45.6]} 29... Nc3 {[%clk 0:04:12]} 30. a3 {[%clk 0:07:38]} 30... Rc5 {[%clk 0:03:55.5]} 31. Nb2 {[%clk 0:07:18.4]} 31... Nd5 {[%clk 0:03:29.2]} 32. a4 {[%clk 0:07:06.2]} 32... Rc2 {[%clk 0:03:11.8]} 33. Nd3 {[%clk 0:06:59.6]} 33... c5 {[%clk 0:03:04]} 34. Rd1 {[%clk 0:06:47.2]} 34... Ne3 {[%clk 0:02:37.4]} 35. Re1 {[%clk 0:06:19.8]} 35... Nxg2 {[%clk 0:01:45.9]} 36. Re7+ {[%clk 0:06:14.6]} 36... Kf6 {[%clk 0:01:44]} 37. Rxc7 {[%clk 0:06:13.8]} 37... c4 {[%clk 0:01:41.3]} 38. Nf2 {[%clk 0:05:55.2]} 38... Kf5 {[%clk 0:01:37.3]} 39. Kxg2 {[%clk 0:05:53.5]} 39... g5 {[%clk 0:01:28.1]} 40. Rxa7 {[%clk 0:05:52.3]} 40... g4 {[%clk 0:01:26.5]} 41. Kg3 {[%clk 0:05:51.2]} 41... c3 {[%clk 0:01:23.7]} 42. a5 {[%clk 0:05:27.2]} 42... Rd2 {[%clk 0:01:19.7]} 43. Rc7 {[%clk 0:05:15.4]} 43... c2 {[%clk 0:01:18.2]} 44. a6 {[%clk 0:05:11.3]} 44... Re2 {[%clk 0:00:58.8]} 45. a7 {[%clk 0:04:56.6]} 45... Re1 {[%clk 0:00:56]} 46. a8=Q {[%clk 0:04:34.9]} 46... Rg1+ {[%clk 0:00:52.1]} 47. Qg2 {[%clk 0:04:30.7]} 47... Rxg2+ {[%clk 0:00:49.2]} 48. Kxg2 {[%clk 0:04:29.3]} 48... Kf4 {[%clk 0:00:43.2]} 49. Rxc2 {[%clk 0:04:26.1]} 49... Ke3 {[%clk 0:00:41.2]} 50. Rc3+ {[%clk 0:04:24.4]} 50... Kd2 {[%clk 0:00:37.6]} 51. Rg3 {[%clk 0:04:24]} 51... Ke1 {[%clk 0:00:34.3]} 52. Rxg4 {[%clk 0:04:23.3]} 1-0

[Event "Live Chess"]
[Site "Chess.com"]
[Date "2010.12.30"]
[Round "-"]
[White "modusoperandy"]
[Black "hipposcottimus"]
[Result "0-1"]
[CurrentPosition "6k1/ppp2ppp/8/2q1r3/P1Kp4/1P1P3P/1P2r3/R1BQ3R w - -"]
[Timezone "UTC"]
[ECO "C44"]
[ECOUrl "https://www.chess.com/openings/Kings-Pawn-Opening-Kings-Knight-Variation-2...Nc6"]
[UTCDate "2010.12.30"]
[UTCTime "03:15:15"]
[WhiteElo "1182"]
[BlackElo "1353"]
[TimeControl "240+11"]
[Termination "hipposcottimus won by checkmate"]
[StartTime "03:15:15"]
[EndDate "2010.12.30"]
[EndTime "03:24:12"]
[Link "https://www.chess.com/game/live/82384867"]

1. e4 {[%clk 0:04:00]} 1... e5 {[%clk 0:04:00]} 2. Nf3 {[%clk 0:04:06.2]} 2... Nc6 {[%clk 0:04:10.2]} 3. a4 {[%clk 0:04:05.7]} 3... Nf6 {[%clk 0:04:12.6]} 4. Bc4 {[%clk 0:04:10.3]} 4... Nxe4 {[%clk 0:04:19.5]} 5. d3 {[%clk 0:04:07.8]} 5... Nf6 {[%clk 0:04:24.1]} 6. Ng5 {[%clk 0:04:11.9]} 6... d5 {[%clk 0:04:31.8]} 7. Bb3 {[%clk 0:04:06.7]} 7... Nd4 {[%clk 0:04:34.5]} 8. Nd2 {[%clk 0:03:56.2]} 8... Be7 {[%clk 0:04:41.9]} 9. Ngf3 {[%clk 0:03:55.6]} 9... O-O {[%clk 0:04:47.6]} 10. Nxe5 {[%clk 0:03:58.3]} 10... Bd6 {[%clk 0:04:48.4]} 11. f4 {[%clk 0:03:41.7]} 11... Bxe5 {[%clk 0:04:49]} 12. fxe5 {[%clk 0:03:50.2]} 12... Bg4 {[%clk 0:04:57.7]} 13. Nf3 {[%clk 0:03:52.6]} 13... Bxf3 {[%clk 0:04:49.9]} 14. gxf3 {[%clk 0:04:00.6]} 14... Re8 {[%clk 0:05:00.5]} 15. f4 {[%clk 0:04:00.5]} 15... Nxb3 {[%clk 0:04:57.5]} 16. cxb3 {[%clk 0:04:07.7]} 16... Qd7 {[%clk 0:05:08.1]} 17. Qc2 {[%clk 0:04:03.2]} 17... Ng4 {[%clk 0:05:16.9]} 18. h3 {[%clk 0:03:42.9]} 18... Nxe5 {[%clk 0:05:25.2]} 19. fxe5 {[%clk 0:03:20]} 19... Rxe5+ {[%clk 0:05:35.8]} 20. Kd2 {[%clk 0:03:24.8]} 20... Rae8 {[%clk 0:05:44]} 21. Kc3 {[%clk 0:02:52.2]} 21... Re2 {[%clk 0:05:43.1]} 22. Qd1 {[%clk 0:02:49.6]} 22... d4+ {[%clk 0:05:52.2]} 23. Kc4 {[%clk 0:02:47.6]} 23... R8e5 {[%clk 0:05:48.6]} 24. Kb4 {[%clk 0:02:39.6]} 24... Qd6+ {[%clk 0:05:54.9]} 25. Kc4 {[%clk 0:02:22.9]} 25... Qc5# {[%clk 0:06:02.6]} 0-1